fUST/lending_fUST_20250108
["ID","MTS","AMOUNT","RATE_DAILY","PERIOD"]
[348119097,1736334441296,-97.39017572,0.0002033,3]
[348119098,1736334546182,-260.5695672,0.00019809,2]
[348119099,1736334546203,-302.99997879,0.00020228,4]
[348119100,1736334546224,-300.0,0.00020329,2]
[348119101,1736334546245,-402.60982428,0.0002033,3]
[348119102,1736334546266,-428.29488089,0.0002033,3]
[348119103,1736334546287,-316.64276362,0.0002033,3]
[348119104,1736334546308,-500.0,0.0002033,3]
[348119105,1736334546328,-500.0,0.0002033,3]
[348119106,1736334546349,-543.29,0.0002033,3]
[348119107,1736334546375,-500.0,0.0002033,3]
[348119108,1736334546396,-543.29,0.00020604,3]
[348119109,1736334546416,-190.557,0.00020633,2]
[348119110,1736334546438,-682.82,0.00020731,3]
[348119111,1736334546459,-500.0,0.00020731,3]
[348119112,1736334546480,-444.56,0.00020731,3]
[348119113,1736334546499,-500.0,0.00020731,3]
[348119114,1736334546521,-500.0,0.00020731,3]
[348119115,1736334546542,-3679.39,0.00020731,3]
[348119116,1736334546562,-500.0,0.00020731,3]
[348119117,1736334546582,-542.57,0.00020731,3]
[348119118,1736334546604,-500.0,0.00020732,3]
[348119119,1736334546624,-500.0,0.00020732,3]
[348119120,1736334546646,-500.0,0.00020732,3]
[348119121,1736334546667,-276.79950226,0.00020732,3]
[348119122,1736334546689,-500.0,0.00020732,3]
[348119123,1736334546708,-500.0,0.00020732,3]
[348119124,1736334546731,-208.10652316,0.00020732,3]
[348119125,1736334565176,-449.7024,0.000189,2]
[348119155,1736334632488,-96.3462051,0.000189,2]
[348119158,1736334632498,-300.0,0.0002073,2]
[348119160,1736334632507,-654.37,0.00020731,3]
[348119161,1736334632516,-209.24,0.00020731,3]
[348119164,1736334632526,-500.0,0.00020731,3]
[348119166,1736334632535,-158.46848235,0.00020731,3]
[348119168,1736334632544,-500.0,0.00020731,3]
[348119170,1736334632556,-500.0,0.00020731,3]
[348119172,1736334632565,-500.0,0.00020731,3]
[348119174,1736334632575,-500.0,0.00020731,3]
[348119176,1736334632584,-500.0,0.00020731,3]
[348119178,1736334632594,-500.0,0.00020731,3]
[348119180,1736334632604,-500.0,0.00020731,3]
[348119182,1736334632614,-500.0,0.00020731,3]
[348119184,1736334632623,-500.0,0.00020731,3]
[348119186,1736334632632,-150.13684941,0.00020732,3]
[348119188,1736334632641,-850.50572046,0.00020741,2]
[348119190,1736334632650,-190.557,0.00020841,2]
[348119192,1736334632660,-500.0,0.00020842,3]
[348119194,1736334632670,-500.0,0.00020842,3]
[348119196,1736334632679,-500.0,0.00020842,3]
[348119198,1736334632688,-500.0,0.00020842,3]
[348119200,1736334632698,-500.0,0.00020842,3]
[348119202,1736334632707,-508.06916019,0.00020842,3]
[348119204,1736334632716,-500.0,0.00020842,3]
[348119206,1736334632725,-500.0,0.00020842,3]
[348119208,1736334632735,-500.0,0.00020842,3]
[348119210,1736334632744,-500.0,0.00020842,3]
[348119212,1736334632753,-500.0,0.00020842,3]
[348119214,1736334632763,-506.09945239,0.00020842,3]
[348119216,1736334632772,-505.18765916,0.00020842,3]
[348119218,1736334632781,-500.0,0.00020842,3]
[348119220,1736334632790,-500.0,0.00020842,3]
[348119222,1736334632800,-266.87113986,0.00020842,3]
[348119224,1736334632810,-500.0,0.00020842,3]
[348119226,1736334632819,-614.39482546,0.00020842,3]
[348119228,1736334632828,-543.29,0.00020878,3]
[348119230,1736334632838,-580.72,0.000209,2]
[348119232,1736334632847,-500.0,0.00020908,3]
[348119234,1736334632856,-500.0,0.00020908,3]
[348119236,1736334632865,-500.0,0.00020908,3]
[348119238,1736334632875,-500.0,0.00020908,3]
[348119240,1736334632884,-500.0,0.00020908,3]
[348119242,1736334632893,-500.0,0.00020908,3]
[348119244,1736334632903,-1000.38,0.00020997,3]
[348119246,1736334632912,-177.278585,0.00020999,2]
[348119248,1736334632921,-177.278585,0.00020999,2]
[348119249,1736334632931,-11178.35630263,0.00021,2]
[348119584,1736334638499,-383.17047853,0.0002033,3]
[348119585,1736334639760,-0.63400331,0.0002033,3]
[348120101,1736334646477,-116.19551816,0.0002033,3]
[348120103,1736334646487,-500.0,0.00020731,3]
[348120104,1736334646497,-5496.98675167,0.00021,2]
[348120105,1736334646506,-3324.24688217,0.00021005,3]
[348120106,1736335532177,165.814537,0.00013973,2]
[348120107,1736335640206,-150.0,0.00017266,2]
[348120108,1736335640229,-150.0,0.0001744,2]
[348120109,1736335640251,-364.0324034,0.000189,2]
[348120110,1736335640272,-166.857448,0.00019523,2]
[348120111,1736335640294,-234.0817437,0.00020195,2]
[348120112,1736335640316,-241.5512998,0.00020295,2]
[348120113,1736335640341,-1001.50805208,0.0002033,3]
[348120114,1736335645117,-508.77483113,0.0002033,3]
[348120115,1736335651263,-277.76020482,0.0002033,3]
[348120116,1736335758154,-469.71691197,0.0002033,3]
[348120117,1736335758178,-500.0,0.0002033,3]
[348120118,1736335758203,-2257.76,0.00020604,3]
[348120119,1736335758227,-300.20987774,0.00020604,3]
[348120120,1736335773178,-242.68826893,0.000189,2]
[348120121,1736335773203,-59.46507286,0.00020604,3]
[348120171,1736335832741,-300.0,0.00020523,2]
[348120173,1736335832751,-140.3250494,0.00020604,3]
[348120175,1736335832761,-300.0,0.0002073,2]
[348120177,1736335832770,-155.13,0.00020731,2]
[348120179,1736335832780,-500.3607789,0.00020731,3]
[348120181,1736335832790,-500.0,0.00020731,3]
[348120183,1736335832799,-500.0,0.00020731,3]
[348120185,1736335832807,-500.0,0.00020731,3]
[348120186,1736335832817,-500.0,0.00020731,3]
[348120188,1736335832826,-500.0,0.00020731,3]
[348120190,1736335832835,-500.0,0.00020731,3]
[348120192,1736335832845,-958.7,0.00020731,3]
[348120194,1736335832855,-500.0,0.00020731,3]
[348120196,1736335832864,-500.0,0.00020731,3]
[348120198,1736335832873,-744.19250542,0.00020808,2]
[348120200,1736335832884,-500.0,0.00020841,3]
[348120202,1736335832895,-500.0,0.00020878,3]
[348120204,1736335832904,-556.526,0.000209,2]
[348120206,1736335832914,-500.0,0.00020905,3]
[348120209,1736335832924,-497.60026348,0.00020905,3]
[348120210,1736335832933,-500.0,0.00020905,3]
[348120212,1736335832942,-500.0,0.00020905,3]
[348120214,1736335832953,-500.0,0.00020905,3]
[348120216,1736335832962,-500.0,0.00020905,3]
[348120218,1736335832971,-203.22615048,0.00020906,3]
[348120220,1736335832980,-500.0,0.00020906,3]
[348120222,1736335832989,-563.22,0.00020906,3]
[348120224,1736335832999,-500.0,0.00020906,3]
[348120226,1736335833008,-566.98,0.00020906,3]
[348120228,1736335833017,-561.54,0.00020906,3]
[348120230,1736335833026,-500.0,0.00020906,3]
[348120231,1736335833036,-500.0,0.00020906,3]
[348120233,1736335833045,-500.0,0.00020906,3]
[348120235,1736335833054,-3717.01,0.00020906,3]
[348120236,1736335833067,-500.0,0.00020906,3]
[348120238,1736335833076,-175.04827942,0.00020906,3]
[348120240,1736335833086,-500.0,0.00020906,3]
[348120241,1736335833095,-500.0,0.00020906,3]
[348120242,1736335833105,-500.0,0.00020906,3]
[348120243,1736335833114,-500.0,0.00020906,3]
[348120244,1736335833124,-500.0,0.00020906,3]
[348120245,1736335833134,-500.0,0.00020906,3]
[348120246,1736335833143,-500.0,0.00020906,3]
[348120247,1736335833154,-627.11,0.00020906,3]
[348120248,1736335833164,-500.0,0.00020906,3]
[348120249,1736335833174,-500.0,0.00020906,3]
[348120250,1736335833183,-500.0,0.00020906,3]
[348120251,1736335833193,-500.0,0.00020906,3]
[348120252,1736335833205,-500.0,0.00020906,3]
[348120253,1736335833215,-500.0,0.00020906,3]
[348120254,1736335833225,-515.31,0.00020906,3]
[348120255,1736335833235,-500.0,0.00020906,3]
[348120256,1736335833246,-500.0,0.00020908,3]
[348120257,1736335833256,-152.446,0.00020997,2]
[348120258,1736335833267,-2069.61,0.00020997,3]
[348120259,1736335833278,-552.54,0.00020999,3]
[348120260,1736335833287,-501.06,0.00021,4]
[348120261,1736335833297,-500.0,0.00021004,3]
[348120262,1736335833307,-552.736853,0.00021004,3]
[348120263,1736335833317,-500.0,0.00021004,3]
[348120264,1736335833327,-500.0,0.00021004,3]
[348120265,1736335833336,-500.0,0.00021004,3]
[348120266,1736335833346,-279.78870386,0.00021004,3]
[348120267,1736335833356,-500.0,0.00021004,3]
[348120268,1736335833366,-500.0,0.00021004,3]
[348120269,1736335833376,-499.05151787,0.00021004,3]
[348120270,1736335833386,-500.0,0.00021005,3]
[348120271,1736335833395,-500.0,0.00021005,3]
[348120272,1736335833405,-500.0,0.00021005,3]
[348120273,1736335833415,-500.0,0.00021005,3]
[348120274,1736335833424,-958.7,0.00021005,3]
[348120275,1736335833434,-500.0,0.00021005,3]
[348120276,1736335833443,-177.278585,0.00021077,2]
[348120277,1736335833455,-177.278585,0.00021077,2]
[348120278,1736335833467,-374.00567485,0.00021134,2]
[348120279,1736335833482,-370.18683054,0.00021134,2]
[348120280,1736335833492,-500.0,0.00021152,3]
[348120281,1736335833501,-151.08515233,0.0002117,2]
[348120282,1736335833511,-160.09021764,0.0002117,2]
[348120283,1736335833520,-500.0,0.0002117,2]
[348120284,1736335833529,-500.0,0.00021179,3]
[348120285,1736335833539,-500.0,0.00021179,3]
[348120286,1736335833550,-223.12007752,0.00021179,3]
[348120287,1736335833559,-373.1,0.0002118,3]
[348120288,1736335833569,-500.0,0.0002118,3]
[348120289,1736335833578,-264.37,0.0002118,3]
[348120290,1736335833588,-500.0,0.0002118,3]
[348120291,1736335833597,-3251.47016273,0.0002118,3]
[348120344,1736335838714,-428.08,0.0002118,3]
[348120502,1736335840624,-366.0670543,0.0002117,2]
[348120508,1736335840667,-133.9329457,0.0002117,2]
[348120510,1736335840677,-37.45983727,0.0002118,3]
[348120512,1736335840686,-500.0,0.0002118,3]
[348120514,1736335840696,-227.25048218,0.0002118,3]
[348120516,1736335840705,-627.11,0.0002118,3]
[348120517,1736335840715,-500.0,0.0002118,3]
[348120519,1736335840724,-500.0,0.0002118,3]
[348120522,1736335840734,-500.0,0.0002118,3]
[348120524,1736335840743,-500.0,0.0002118,3]
[348120528,1736335840752,-500.0,0.0002118,3]
[348120531,1736335840761,-500.2044694,0.00021188,2]
[348120535,1736335840771,-1019.1,0.00021235,3]
[348120538,1736335840780,-177.278585,0.00021236,2]
[348120540,1736335840789,-81.1636796,0.00021236,2]
[348120542,1736335840801,-96.1149054,0.00021236,2]
[348120544,1736335840811,-1450.67109514,0.00021271,3]
[348120546,1736335840822,-618.93890486,0.00021271,3]
[348120548,1736335840832,-177.278585,0.00021273,2]
[348120550,1736335840841,-177.278585,0.00021273,2]
[348120552,1736335840850,-297.12,0.00021278,3]
[348120554,1736335840859,-500.0,0.00021278,3]
[348120556,1736335840868,-500.0,0.00021279,3]
[348120558,1736335840878,-268.06,0.00021279,3]
[348120560,1736335840887,-265.17,0.00021279,3]
[348120562,1736335840896,-958.7,0.00021279,3]
[348120564,1736335840905,-500.0,0.00021279,3]
[348120566,1736335840914,-3886.58623137,0.00021426,4]
[348120796,1736335843659,-929.89395378,0.00021426,4]
[348120797,1736335843671,-3502.2408558,0.00021426,4]
[348120798,1736335843683,-433.29,0.00021426,4]
[348120799,1736335843694,-3706.26324597,0.00021426,4]
[348120800,1736335843794,-1180.179422,0.00021426,4]
[348120803,1736335843805,-752.3827882,0.00021426,4]
[348120843,1736335846541,-6320.47912664,0.00021426,4]
[348120844,1736335846551,-21731.02566226,0.00021426,4]
[348120845,1736335846561,-500.0,0.00021426,3]
[348120846,1736335846573,-385.11,0.00021453,3]
[348120847,1736335846582,-316.48,0.00021453,3]
[348120848,1736335846592,-500.0,0.00021454,3]
[348120849,1736335846602,-285.9,0.00021454,3]
[348120850,1736335846612,-3717.01,0.00021454,3]
[348120851,1736335846621,-261.63,0.00021454,3]
[348120852,1736335846631,-627.11,0.00021454,3]
[348120853,1736335846640,-500.0,0.00021454,3]
[348120854,1736335846650,-169.93596662,0.00021454,3]
[348120855,1736335846662,-260.37403338,0.00021454,3]
[348120856,1736335846672,-500.0,0.00021454,3]
[348120857,1736335846681,-500.0,0.00021454,3]
[348120858,1736335846690,-500.0,0.00021454,3]
[348120859,1736335846700,-744.19250539,0.00021459,2]
[348120860,1736335846710,-500.0,0.00021507,2]
[348120861,1736335846721,-487.648647,0.00021507,2]
[348120862,1736335846730,-567.96430148,0.00021507,2]
[348120863,1736335846739,-500.0,0.00021507,2]
[348120864,1736335846749,-500.0,0.00021507,2]
[348120865,1736335846758,-407.32701584,0.00021507,2]
[348120866,1736335846768,-500.0,0.00021507,2]
[348120867,1736335846777,-500.0,0.00021507,2]
[348120868,1736335846787,-500.0,0.00021507,2]
[348120869,1736335846797,-451.98192468,0.00021507,2]
[348120870,1736335846806,-593.18433562,0.00021507,2]
[348120871,1736335846815,-454.6215847,0.00021507,2]
[348120872,1736335846825,-177.02048173,0.00021507,2]
[348120873,1736335846834,-1019.1,0.00021509,3]
[348120874,1736335846844,-151.0,0.0002151,2]
[348120875,1736335846855,-151.0,0.00021511,2]
[348120876,1736335846864,-2069.61,0.00021545,3]
[348120877,1736335846874,-477.77571418,0.00021553,3]
[348120878,1736335846887,-22.22428582,0.00021553,3]
[348120879,1736335846897,-602.55837568,0.00021553,3]
[348120880,1736335846962,-356.14162432,0.00021553,3]
[348120881,1736335846972,-500.0,0.00021553,3]
[348120882,1736335846981,-173.41,0.0002166,2]
[348120883,1736335846991,-3706.0,0.00021705,4]
[348120884,1736335847001,-1000.0,0.00021718,2]
[348120885,1736335847011,-964.44837567,0.00021718,2]
[348120886,1736335847349,-30.86224498,0.00021718,2]
[348120887,1736335970355,4900.0,0.00015,60]
[348120888,1736336419772,167.162652,0.00013973,2]
[348120889,1736336830134,-161.36731019,0.000159,7]
[348120890,1736336830156,-491.0,0.00016,60]
[348120891,1736336830178,-4932.4571466,0.00016916,2]
[348120892,1736336830199,-155.55659496,0.00017207,2]
[348120893,1736336830220,-300.0,0.00017305,2]
[348120894,1736336830241,-6071.94918681,0.00017305,2]
[348120895,1736336839093,-7299.81233013,0.00017305,2]
[348120896,1736336854150,-1568.01795052,0.00017305,2]
[348120897,1736336946130,-7786.0,0.00016962,2]
[348120898,1736336946152,-7486.0,0.00017132,2]
[348120899,1736336946175,-6862.9966446,0.00017133,2]
[348120900,1736336949201,-923.0033554,0.00017133,2]
[348120901,1736336949223,-1145.96502575,0.0001748,2]
[348120902,1736336949245,-20084.999476,0.00017481,2]
[348120903,1736336949266,-152.0,0.000184,2]
[348120904,1736336949289,-24900.0,0.00018952,2]
[348120905,1736336949310,-500.0,0.00019178,2]
[348120906,1736336949331,-500.0,0.00019178,2]
[348120907,1736336949352,-500.0,0.00019178,2]
[348120908,1736336949372,-500.0,0.00019178,2]
[348120909,1736336949393,-500.0,0.00019178,2]
[348120910,1736336949414,-200.0,0.00019178,2]
[348120911,1736336949436,-500.0,0.00019178,2]
[348120912,1736336949457,-500.0,0.00019178,2]
[348120913,1736336949478,-163.634603,0.00019178,2]
[348120914,1736336949499,-154.85,0.00019178,2]
[348120915,1736336949520,-1420.1111428,0.00019257,2]
[348120916,1736336949541,-767.113229,0.00019342,2]
[348120917,1736336949563,-500.0,0.00019406,3]
[348120918,1736336949591,-1000.0,0.00019406,7]
[348120919,1736336949622,-500.0,0.00019406,3]
[348120920,1736336949649,-500.0,0.00019406,3]
[348120921,1736336949680,-500.0,0.00019406,3]
[348120922,1736336949707,-500.0,0.00019406,3]
[348120923,1736336949740,-621.32,0.00019406,3]
[348120924,1736336949768,-500.0,0.00019406,3]
[348120925,1736336949799,-500.0,0.00019406,3]
[348120926,1736336949826,-500.0,0.00019406,3]
[348120927,1736336949854,-500.0,0.00019406,3]
[348120928,1736336949882,-500.0,0.00019406,3]
[348120929,1736336949911,-1273.18233447,0.00019407,2]
[348120930,1736336949937,-250.0,0.00019412,2]
[348120931,1736336949963,-500.0,0.00019452,3]
[348120932,1736336949989,-500.0,0.00019452,3]
[348120933,1736336950017,-500.0,0.00019452,3]
[348120934,1736336950049,-500.0,0.0001968,3]
[348120935,1736336950079,-1000.0,0.0001968,7]
[348120936,1736336950108,-500.0,0.0001968,3]
[348120937,1736336950132,-500.0,0.0001968,3]
[348120938,1736336950159,-621.32,0.0001968,3]
[348120939,1736336950189,-500.0,0.0001968,3]
[348120940,1736336950218,-500.0,0.0001968,3]
[348120941,1736336950243,-500.0,0.0001968,3]
[348120942,1736336950272,-500.0,0.0001968,3]
[348120943,1736336950298,-500.0,0.0001968,3]
[348120944,1736336950322,-500.0,0.00019726,3]
[348120945,1736336950347,-500.0,0.00019726,3]
[348120946,1736336950373,-432.60000001,0.00019726,3]
[348120947,1736336950398,-253.401931,0.00019879,2]
[348120948,1736336950423,-500.0,0.00019954,3]
[348120949,1736336950450,-500.0,0.00019954,3]
[348120950,1736336950475,-500.0,0.00019954,3]
[348120951,1736336950502,-621.32,0.00019954,3]
[348120952,1736336950531,-500.0,0.00019954,3]
[348120953,1736336950556,-500.0,0.00019954,3]
[348120954,1736336950583,-500.0,0.00019954,3]
[348120955,1736336950608,-500.0,0.00019954,3]
[348120956,1736336950635,-500.0,0.00019954,3]
[348120957,1736336950660,-500.0,0.0002,3]
[348120958,1736336950688,-500.0,0.0002,3]
[348120959,1736336950716,-500.0,0.00020228,3]
[348120960,1736336950743,-500.0,0.00020228,3]
[348120961,1736336950772,-500.0,0.00020228,3]
[348120962,1736336950799,-621.32,0.00020228,3]
[348120963,1736336950823,-500.0,0.00020228,3]
[348120964,1736336950973,-500.0,0.00020228,3]
[348120965,1736336950997,-500.0,0.00020228,3]
[348120966,1736336951020,-500.0,0.00020228,3]
[348120967,1736336951044,-346.07329502,0.00020273,3]
[348120968,1736336956178,-500.0,0.00020228,3]
[348120969,1736336956200,-92.51691276,0.00020273,3]
[348120970,1736336956222,-500.0,0.00020273,3]
[348120971,1736336956244,-500.0,0.00020502,3]
[348120972,1736336956266,-500.0,0.00020502,3]
[348120973,1736336956288,-500.0,0.00020502,3]
[348120974,1736336956313,-621.32,0.00020502,3]
[348120975,1736336956337,-500.0,0.00020502,3]
[348120976,1736336956359,-500.0,0.00020502,3]
[348120977,1736336956382,-500.0,0.00020502,3]
[348120978,1736336956404,-500.0,0.00020502,3]
[348120979,1736336956427,-500.0,0.00020502,3]
[348120980,1736336956450,-485.24240012,0.00020729,2]
[348120981,1736336956471,-500.0,0.00020729,2]
[348120982,1736336956493,-500.0,0.00020729,2]
[348120983,1736336956515,-500.0,0.00020729,2]
[348120984,1736336956537,-500.0,0.00020729,2]
[348120985,1736336956559,-500.0,0.00020729,2]
[348120986,1736336956580,-500.0,0.00020729,2]
[348120987,1736336956602,-500.0,0.00020729,2]
[348120988,1736336956626,-500.0,0.00020729,2]
[348120989,1736336956649,-500.0,0.00020729,2]
[348120990,1736336956671,-613.12003236,0.00020729,2]
[348120991,1736336956694,-500.0,0.00020729,2]
[348120992,1736336956718,-500.0,0.00020729,2]
[348120993,1736336956740,-500.0,0.00020729,2]
[348120994,1736336956763,-316.579346,0.00020729,2]
[348120995,1736336956790,-500.0,0.00020729,2]
[348120996,1736336956814,-500.0,0.00020729,2]
[348120997,1736336956837,-500.0,0.00020729,2]
[348120998,1736336956859,-395.02197997,0.00020729,2]
[348120999,1736336956882,-500.0,0.00020729,2]
[348121000,1736336956905,-478.21950927,0.00020729,2]
[348121001,1736336956929,-500.0,0.00020729,2]
[348121002,1736336956951,-500.0,0.00020729,2]
[348121003,1736336956973,-500.0,0.00020729,2]
[348121004,1736336956995,-500.0,0.00020729,2]
[348121005,1736336957017,-500.0,0.00020729,2]
[348121006,1736336957041,-500.0,0.00020729,2]
[348121007,1736336957071,-500.0,0.00020729,2]
[348121008,1736336957093,-500.0,0.00020729,2]
[348121009,1736336957118,-415.58331744,0.00020729,2]
[348121010,1736336957139,-500.0,0.00020729,2]
[348121011,1736336957162,-500.0,0.00020729,2]
[348121012,1736336957187,-500.0,0.00020729,2]
[348121013,1736336957209,-500.0,0.00020729,2]
[348121014,1736336957233,-500.0,0.00020729,2]
[348121015,1736336957256,-500.0,0.00020729,2]
[348121016,1736336957280,-500.0,0.00020729,2]
[348121017,1736336957303,-500.0,0.00020729,2]
[348121018,1736336957325,-500.0,0.00020729,2]
[348121019,1736336957346,-500.0,0.00020729,2]
[348121020,1736336957367,-500.0,0.00020729,2]
[348121021,1736336957389,-500.0,0.00020729,2]
[348121022,1736336957411,-500.0,0.00020729,2]
[348121023,1736336957433,-306.09571919,0.00020729,2]
[348121024,1736336957456,-500.0,0.00020729,2]
[348121025,1736336957480,-22819.55101211,0.00020731,4]
[348121026,1736336957502,-37080.73801744,0.00020731,4]
[348121027,1736336957524,-500.0,0.00020731,3]
[348121028,1736336957548,-500.0,0.00020731,3]
[348121029,1736336957572,-63.71274586,0.00020731,3]
[348121030,1736336965102,-548.72,0.00019406,3]
[348121031,1736336965123,-548.72,0.0001968,3]
[348121032,1736336965145,-548.72,0.00019954,3]
[348121033,1736336965167,-498.00275393,0.00020228,3]
[348121034,1736336967099,-50.71724607,0.00020228,3]
[348121035,1736336967122,-121.35456237,0.00020502,3]
[348121251,1736337037129,-848.78822298,0.00018524,2]
[348121252,1736337037139,-99.04177702,0.00018711,2]
[348121253,1736337037151,-749.74644596,0.00018711,2]
[348121254,1736337037160,-848.78822298,0.000189,2]
[348121255,1736337037169,-151.0,0.00018941,2]
[348121256,1736337037179,-500.0,0.00019178,2]
[348121257,1736337037188,-500.0,0.00019178,2]
[348121258,1736337037197,-500.0,0.00019178,2]
[348121259,1736337037207,-500.0,0.00019178,2]
[348121260,1736337037218,-500.0,0.00019178,2]
[348121261,1736337037229,-500.0,0.00019178,2]
[348121262,1736337037238,-300.0,0.00019405,2]
[348121264,1736337037247,-500.0,0.00019406,3]
[348121266,1736337037256,-500.0,0.00019406,3]
[348121267,1736337037266,-500.0,0.00019406,3]
[348121268,1736337037275,-447.81707183,0.00019406,3]
[348121269,1736337037284,-500.0,0.00019406,3]
[348121270,1736337037295,-500.0,0.00019406,3]
[348121271,1736337037306,-500.0,0.00019406,3]
[348121272,1736337037315,-500.0,0.00019406,3]
[348121273,1736337037324,-500.0,0.00019452,3]
[348121274,1736337037334,-500.0,0.00019452,3]
[348121275,1736337037354,-500.0,0.00019452,3]
[348121276,1736337037366,-500.0,0.00019452,3]
[348121277,1736337037376,-500.0,0.0001968,3]
[348121278,1736337037386,-500.0,0.0001968,3]
[348121279,1736337037396,-500.0,0.0001968,3]
[348121280,1736337037406,-500.0,0.0001968,3]
[348121281,1736337037416,-500.0,0.0001968,3]
[348121282,1736337037426,-500.0,0.0001968,3]
[348121283,1736337037436,-500.0,0.00019726,3]
[348121284,1736337037446,-340.56,0.00019726,3]
[348121285,1736337037456,-500.0,0.00019726,3]
[348121286,1736337037467,-500.0,0.00019726,3]
[348121287,1736337037476,-500.0,0.00019954,3]
[348121288,1736337037487,-500.0,0.00019954,3]
[348121289,1736337037496,-500.0,0.00019954,3]
[348121290,1736337037506,-500.0,0.00019954,3]
[348121291,1736337037516,-500.0,0.00019954,3]
[348121292,1736337037526,-500.0,0.00019954,3]
[348121293,1736337037536,-159.26325923,0.0002,3]
[348121294,1736337037550,-340.73674077,0.0002,3]
[348121295,1736337037560,-133.69825923,0.0002,3]
[348121296,1736337037573,-366.30174077,0.0002,3]
[348121297,1736337037582,-33.26048215,0.0002,3]
[348121298,1736337037596,-466.73951785,0.0002,3]
[348121299,1736337037605,-500.0,0.00020228,3]
[348121300,1736337037615,-500.0,0.00020228,3]
[348121301,1736337037625,-500.0,0.00020228,3]
[348121302,1736337037635,-500.0,0.00020228,3]
[348121303,1736337037644,-500.0,0.00020228,3]
[348121304,1736337037653,-500.0,0.00020228,3]
[348121305,1736337037663,-500.0,0.00020273,3]
[348121306,1736337037673,-500.0,0.00020273,3]
[348121307,1736337037683,-500.0,0.00020273,3]
[348121308,1736337037693,-427.36543763,0.00020502,3]
[348121309,1736337037702,-515.64,0.00020502,3]
[348121310,1736337037712,-500.0,0.00020502,3]
[348121311,1736337037721,-500.0,0.00020502,3]
[348121312,1736337037731,-500.0,0.00020502,3]
[348121313,1736337037741,-500.0,0.00020502,3]
[348121314,1736337037750,-500.0,0.00020502,3]
[348121315,1736337037760,-500.0,0.00020547,3]
[348121316,1736337037774,-500.0,0.00020547,3]
[348121317,1736337037784,-436.28725414,0.00020731,3]
[348121318,1736337037794,-500.0,0.00020731,3]
[348121319,1736337037803,-500.0,0.00020731,3]
[348121320,1736337037814,-500.0,0.00020731,3]
[348121321,1736337037824,-500.0,0.00020731,3]
[348121322,1736337037834,-500.0,0.00020731,3]
[348121323,1736337037844,-500.0,0.00020731,3]
[348121324,1736337037854,-500.0,0.00020731,3]
[348121325,1736337037864,-2692.09,0.00020731,3]
[348121326,1736337037873,-500.0,0.00020731,3]
[348121327,1736337037883,-500.0,0.00020731,3]
[348121328,1736337037892,-500.0,0.00020731,3]
[348121329,1736337037902,-500.0,0.00020731,3]
[348121330,1736337037911,-500.0,0.00020731,3]
[348121331,1736337037922,-181.88181001,0.00020731,3]
[348121332,1736337037932,-500.0,0.00020731,3]
[348121333,1736337037942,-500.0,0.00020731,3]
[348121334,1736337037951,-500.0,0.00020731,3]
[348121335,1736337037961,-7042.05,0.00020731,3]
[348121336,1736337037971,-500.0,0.00020731,3]
[348121337,1736337037980,-500.0,0.00020731,3]